fUSD/lending_fUSD_20250512
["ID","MTS","AMOUNT","RATE_DAILY","PERIOD"]
[360777739,1747011035499,-500.0,0.00014303,2]
[360777741,1747011035510,-121.85686411,0.00014303,2]
[360777744,1747011035529,-282.2623456,0.00014303,2]
[360777746,1747011035541,-500.0,0.00014303,2]
[360777748,1747011035550,-500.0,0.00014303,2]
[360777750,1747011035560,-500.0,0.00014303,2]
[360777752,1747011035569,-500.0,0.00014303,2]
[360777754,1747011035578,-500.0,0.00014303,2]
[360777756,1747011035588,-500.0,0.00014303,2]
[360777758,1747011035597,-500.0,0.00014303,2]
[360777760,1747011035607,-500.0,0.00014303,2]
[360777762,1747011035616,-500.0,0.00014303,2]
[360777764,1747011035625,-500.0,0.00014303,2]
[360777766,1747011035634,-500.0,0.00014303,2]
[360777768,1747011035643,-500.0,0.00014303,2]
[360777770,1747011035652,-500.0,0.00014303,2]
[360777772,1747011035661,-500.0,0.00014303,2]
[360777773,1747011035671,-500.0,0.00014303,2]
[360777775,1747011035681,-500.0,0.00014303,2]
[360777778,1747011035691,-500.0,0.00014303,2]
[360777780,1747011035702,-500.0,0.00014303,2]
[360777782,1747011035712,-500.0,0.00014303,2]
[360777783,1747011035722,-500.0,0.00014303,2]
[360777785,1747011035731,-500.0,0.00014303,2]
[360777787,1747011035742,-500.0,0.00014303,2]
[360777790,1747011035751,-500.0,0.00014303,2]
[360777792,1747011035761,-500.0,0.00014303,2]
[360777794,1747011035772,-500.0,0.00014303,2]
[360777795,1747011035781,-500.0,0.00014303,2]
[360777797,1747011035791,-639.1955937,0.00014303,2]
[360777799,1747011035800,-500.0,0.00014303,2]
[360777801,1747011035809,-500.0,0.00014303,2]
[360777803,1747011035818,-500.0,0.00014303,2]
[360777805,1747011035828,-500.0,0.00014303,2]
[360777808,1747011035837,-500.0,0.00014303,2]
[360777810,1747011035847,-500.0,0.00014303,2]
[360777812,1747011035857,-595.56873016,0.00014304,2]
[360777814,1747011035867,-1460.34095594,0.00014304,2]
[360777816,1747011035876,-1307.49432688,0.00014318,2]
[360777818,1747011035885,-173.90104145,0.0001432,2]
[360777820,1747011035894,-1460.34095591,0.00014327,2]
[360777822,1747011035903,-1307.49432686,0.0001434,2]
[360777824,1747011035915,-1307.49432686,0.00014362,2]
[360777825,1747011035924,-500.0,0.00014373,2]
[360777828,1747011035934,-500.0,0.00014373,2]
[360777830,1747011035943,-1307.49432686,0.00014383,2]
[360777831,1747011035954,-150.0,0.00014397,2]
[360777833,1747011035964,-500.0,0.00014398,2]
[360777835,1747011035973,-150.0,0.00014398,2]
[360777837,1747011035982,-166.38924144,0.00014398,2]
[360777839,1747011035992,-185.77254251,0.00014398,2]
[360777841,1747011036001,-167.4156124,0.00014398,2]
[360777843,1747011036011,-164.97976862,0.00014398,2]
[360777845,1747011036020,-400.0,0.00014399,2]
[360777847,1747011036030,-400.0,0.00014399,2]
[360777850,1747011036039,-400.0,0.00014399,2]
[360777852,1747011036049,-400.0,0.00014399,2]
[360777854,1747011036058,-400.0,0.00014399,2]
[360777856,1747011036067,-400.0,0.00014399,2]
[360777858,1747011036076,-400.0,0.00014399,2]
[360777860,1747011036086,-472.57304415,0.00014399,2]
[360777862,1747011036095,-271.28282818,0.00014399,2]
[360777864,1747011036104,-400.0,0.00014399,2]
[360777865,1747011036113,-400.0,0.00014399,2]
[360777868,1747011036124,-400.0,0.00014399,2]
[360777870,1747011036133,-405.19714803,0.00014399,2]
[360777872,1747011036143,-400.0,0.00014399,2]
[360777873,1747011036152,-400.0,0.00014399,2]
[360777875,1747011036162,-400.0,0.00014399,2]
[360777878,1747011036171,-400.0,0.00014399,2]
[360777880,1747011036181,-400.0,0.00014399,2]
[360777881,1747011036191,-400.0,0.00014399,2]
[360777884,1747011036201,-400.0,0.00014399,2]
[360777886,1747011036212,-400.0,0.00014399,2]
[360777888,1747011036222,-400.0,0.00014399,2]
[360777890,1747011036232,-400.0,0.00014399,2]
[360777892,1747011036244,-400.0,0.00014399,2]
[360777894,1747011036253,-435.1893572,0.00014399,2]
[360777895,1747011036263,-402.68558694,0.00014399,2]
[360777897,1747011036272,-536.21379654,0.00014399,2]
[360777899,1747011036281,-400.0,0.00014399,2]
[360777901,1747011036290,-400.0,0.00014399,2]
[360777903,1747011036299,-400.0,0.00014399,2]
[360777905,1747011036309,-400.0,0.00014399,2]
[360777907,1747011036318,-400.0,0.00014399,2]
[360777910,1747011036327,-400.0,0.00014399,2]
[360777912,1747011036337,-400.0,0.00014399,2]
[360777914,1747011036346,-400.0,0.00014399,2]
[360777915,1747011036355,-400.0,0.00014399,2]
[360777918,1747011036364,-400.0,0.00014399,2]
[360777919,1747011036373,-400.0,0.00014399,2]
[360777921,1747011036383,-400.0,0.00014399,2]
[360777924,1747011036392,-400.0,0.00014399,2]
[360777925,1747011036402,-400.0,0.00014399,2]
[360777927,1747011036411,-400.0,0.00014399,2]
[360777929,1747011036421,-400.0,0.00014399,2]
[360777931,1747011036430,-400.0,0.00014399,2]
[360777933,1747011036439,-400.0,0.00014399,2]
[360777935,1747011036449,-507.41,0.00014399,2]
[360777937,1747011036458,-507.41,0.00014399,2]
[360777940,1747011036467,-400.0,0.00014399,2]
[360777941,1747011036476,-400.0,0.00014399,2]
[360777944,1747011036486,-201.05839118,0.00014399,2]
[360777946,1747011036496,-400.0,0.00014399,2]
[360777947,1747011036505,-400.0,0.00014399,2]
[360777949,1747011036514,-283.20240785,0.00014399,2]
[360777952,1747011036524,-435.11,0.00014399,2]
[360777953,1747011036533,-400.0,0.00014399,2]
[360777956,1747011036543,-435.11,0.00014399,2]
[360777957,1747011036552,-400.0,0.00014399,2]
[360777960,1747011036561,-435.11,0.00014399,2]
[360777962,1747011036571,-400.0,0.00014399,2]
[360777964,1747011036580,-400.0,0.00014399,2]
[360777966,1747011036589,-400.0,0.00014399,2]
[360777968,1747011036599,-400.1632469,0.00014399,2]
[360777969,1747011036608,-400.0,0.00014399,2]
[360777971,1747011036617,-400.0,0.00014399,2]
[360777973,1747011036626,-400.0,0.00014399,2]
[360777975,1747011036635,-899.16,0.00014399,2]
[360777977,1747011036644,-899.16,0.00014399,2]
[360777979,1747011036654,-899.16,0.00014399,2]
[360777981,1747011036663,-5031.75,0.00014399,2]
[360777983,1747011036672,-489.93980272,0.00014399,2]
[360778036,1747011037173,600.0,0.00013699,2]
[360778051,1747011037305,600.0,0.00013699,2]
[360778081,1747011037588,600.0,0.00013699,2]
[360778110,1747011037853,600.0,0.00013699,2]
[360778151,1747011038335,155.5788271,0.00013699,2]
[360778155,1747011038358,444.4211729,0.00013699,2]
[360778251,1747011039269,-779.54,0.0001435,2]
[360778265,1747011039396,-496.59,0.0001435,2]
[360778267,1747011039408,-184.21095591,0.0001435,2]
[360778270,1747011039417,-4541.81019728,0.00014399,2]
[360778271,1747011039427,-400.0,0.00014399,2]
[360778273,1747011039436,-400.0,0.00014399,2]
[360778275,1747011039445,-297.54706981,0.00014399,2]
[360778279,1747011039468,-102.45293019,0.00014399,2]
[360778281,1747011039478,-400.0,0.00014399,2]
[360778283,1747011039487,-400.0,0.00014399,2]
[360778285,1747011039496,-400.0,0.00014399,2]
[360778287,1747011039505,-500.91,0.00014399,2]
[360778289,1747011039515,-500.91,0.00014399,2]
[360778291,1747011039524,-500.91,0.00014399,2]
[360778293,1747011039534,-400.0,0.00014399,2]
[360778295,1747011039543,-400.0,0.00014399,2]
[360778296,1747011039552,-400.0,0.00014399,2]
[360778298,1747011039562,-400.0,0.00014399,2]
[360778301,1747011039572,-400.0,0.00014399,2]
[360778303,1747011039581,-400.0,0.00014399,2]
[360778305,1747011039590,-503.91714624,0.00014399,2]
[360778306,1747011039600,-1970.21,0.00014399,2]
[360778309,1747011039609,-1970.21,0.00014399,2]
[360778311,1747011039619,-1970.21,0.00014399,2]
[360778313,1747011039628,-400.0,0.00014399,2]
[360778315,1747011039637,-400.0,0.00014399,2]
[360778317,1747011039647,-153.2154232,0.00014399,2]
[360778319,1747011039656,-14489.9,0.00014399,2]
[360778321,1747011039665,-14489.9,0.00014399,2]
[360778323,1747011039675,-400.0,0.00014399,2]
[360778325,1747011039685,-400.0,0.00014399,2]
[360778327,1747011039696,-400.0,0.00014399,2]
[360778329,1747011039709,-542.86,0.00014399,2]
[360778332,1747011039719,-542.86,0.00014399,2]
[360778334,1747011039728,-542.86,0.00014399,2]
[360778337,1747011039739,-400.0,0.00014399,2]
[360778340,1747011039748,-400.0,0.00014399,2]
[360778343,1747011039758,-549.77999386,0.00014399,2]
[360778346,1747011039767,-400.0,0.00014399,2]
[360778349,1747011039778,-400.0,0.00014399,2]
[360778351,1747011039788,-400.0,0.00014399,2]
[360778354,1747011039797,-400.0,0.00014399,2]
[360778357,1747011039807,-400.0,0.00014399,2]
[360778361,1747011039820,-189.37899796,0.00014399,2]
[360778364,1747011039830,-400.0,0.00014399,2]
[360778366,1747011039840,-400.0,0.00014399,2]
[360778369,1747011039849,-400.0,0.00014399,2]
[360778371,1747011039859,-400.0,0.00014399,2]
[360778373,1747011039869,-1103.93,0.00014399,2]
[360778376,1747011039878,-1381.04,0.00014399,2]
[360778378,1747011039887,-1103.93,0.00014399,2]
[360778381,1747011039896,-1381.04,0.00014399,2]
[360778384,1747011039906,-1103.93,0.00014399,2]
[360778386,1747011039915,-400.0,0.00014399,2]
[360778389,1747011039924,-400.0,0.00014399,2]
[360778391,1747011039934,-400.0,0.00014399,2]
[360778394,1747011039943,-200.35050744,0.00014399,2]
[360778396,1747011039953,-1127.5,0.00014399,2]
[360778399,1747011039962,-1127.5,0.00014399,2]
[360778401,1747011039971,-1127.5,0.00014399,2]
[360778404,1747011039981,-466.15,0.00014399,2]
[360778406,1747011039993,-400.0,0.00014399,2]
[360778409,1747011040003,-466.15,0.00014399,2]
[360778411,1747011040013,-505.43912246,0.00014399,2]
[360778414,1747011040023,-400.0,0.00014399,2]
[360778417,1747011040033,-513.54778463,0.00014399,2]
[360778419,1747011040043,-400.0,0.00014399,2]
[360778422,1747011040052,-400.0,0.00014399,2]
[360778424,1747011040061,-400.0,0.00014399,2]
[360778427,1747011040071,-2787.02,0.00014399,2]
[360778430,1747011040081,-2787.02,0.00014399,2]
[360778433,1747011040090,-2787.02,0.00014399,2]
[360778435,1747011040099,-400.0,0.00014399,2]
[360778438,1747011040109,-400.29739025,0.00014399,2]
[360778440,1747011040118,-400.0,0.00014399,2]
[360778444,1747011040132,-400.0,0.00014399,2]
[360778446,1747011040141,-400.0,0.00014399,2]
[360778448,1747011040151,-400.0,0.00014399,2]
[360778451,1747011040161,-400.0,0.00014399,2]
[360778453,1747011040170,-400.0,0.00014399,2]
[360778456,1747011040180,-493.35,0.00014399,2]
[360778459,1747011040190,-493.35,0.00014399,2]
[360778461,1747011040200,-493.35,0.00014399,2]
[360778464,1747011040210,-476.99185505,0.00014399,2]
[360778467,1747011040219,-2402.655837,0.00014399,2]
[360778469,1747011040229,-2402.655837,0.00014399,2]
[360778472,1747011040241,-2402.655837,0.00014399,2]
[360778475,1747011040251,-719.45,0.00014399,2]
[360778478,1747011040261,-719.45,0.00014399,2]
[360778480,1747011040270,-719.45,0.00014399,2]
[360778483,1747011040280,-17226.79133771,0.000144,2]
[360778488,1747011040307,-65700.08825703,0.000144,2]
[360778501,1747011040369,-55034.08513356,0.000144,2]
[360778504,1747011040382,-1103.78704119,0.000144,2]
[360778609,1747011041216,-1460.34095591,0.00014374,2]
[360778611,1747011041225,-400.0,0.00014399,2]
[360778613,1747011041235,-400.0,0.00014399,2]
[360778615,1747011041245,-3902.39491286,0.000144,2]
[360778617,1747011041257,-2239.99555988,0.000144,2]
[360778619,1747011041268,-333.81892786,0.000144,2]
[360778621,1747011041280,-9303.7276782,0.000144,2]
[360778624,1747011041292,-41303.73110074,0.000144,2]
[360778626,1747011041303,-37353.88542341,0.000144,2]
[360778794,1747011043143,-400.0,0.00014399,2]
[360778796,1747011043153,-1308.02,0.00014399,2]
[360778798,1747011043164,-400.0,0.00014399,2]
[360778800,1747011043173,-1308.02,0.00014399,2]
[360778802,1747011043184,-1308.02,0.00014399,2]
[360778804,1747011043194,-400.0,0.00014399,2]
[360778806,1747011043204,-400.0,0.00014399,2]
[360778808,1747011043214,-14108.67019419,0.000144,2]
[360779114,1747011046261,-1460.34095591,0.00014397,2]
[360779116,1747011046271,-590.7,0.00014399,2]
[360779118,1747011046281,-590.7,0.00014399,2]
[360779120,1747011046290,-690.93,0.00014399,2]
[360779123,1747011046301,-690.93,0.00014399,2]
[360779124,1747011046310,-690.93,0.00014399,2]
[360779126,1747011046320,-2382.93585547,0.000144,2]
[360779134,1747011046381,-507.8,0.000144,2]
[360779136,1747011046392,-123801.74729739,0.000144,2]
[360779808,1747011061655,356.97,0.000135,2]
[360779809,1747011071560,1213.87,0.00013508,2]
[360779810,1747011084676,600.0,0.00013699,2]
[360779811,1747011085032,600.0,0.00013699,2]
[360779812,1747011085558,600.0,0.00013699,2]
[360779813,1747011085734,600.0,0.00013699,2]
[360779814,1747011086060,444.91377333,0.00013699,2]
[360779815,1747011086085,155.08622667,0.00013699,2]
[360779816,1747011183743,178.81,0.00013507,2]
[360779817,1747011219696,700.0,0.00013699,2]
[360779818,1747011220016,700.0,0.00013699,2]
[360779819,1747011220366,700.0,0.00013699,2]
[360779820,1747011220722,700.0,0.00013699,2]
[360779821,1747011221105,700.0,0.00013699,2]
[360779822,1747011255706,-270.5062,0.00014299,2]
[360779823,1747011255733,-150.0,0.00014299,2]
[360779824,1747011255760,-329.5935,0.000143,2]
[360779825,1747011255792,-500.0,0.000143,2]
[360779826,1747011255828,-500.0,0.000143,2]
[360779827,1747011255860,-500.0,0.000143,2]
[360779828,1747011255892,-500.0,0.000143,2]
[360779829,1747011255926,-204.33148034,0.000143,2]
[360779830,1747011255954,-794.0751,0.000143,2]
[360779831,1747011255981,-5301.0195,0.000143,2]
[360779832,1747011256007,-151.14439296,0.000143,2]
[360779833,1747011256034,-250.0,0.00014301,2]
[360779834,1747011256061,-1778.00152154,0.00014313,2]
[360779835,1747011256088,-1778.00152153,0.00014335,2]
[360779836,1747011256116,-1778.00152153,0.00014357,2]
[360779837,1747011256143,-1778.00152153,0.00014379,2]
[360779838,1747011256174,-151.0,0.00014391,2]
[360779839,1747011256203,-668.65185757,0.00014391,2]
[360779840,1747011256232,-151.0,0.00014391,2]
[360779841,1747011256260,-207.4,0.00014391,2]
[360779842,1747011256287,-400.0,0.00014399,2]
[360779843,1747011256312,-1290.46,0.00014399,2]
[360779844,1747011256339,-1290.46,0.00014399,2]
[360779845,1747011256369,-1290.46,0.00014399,2]
[360779846,1747011256394,-400.0,0.00014399,2]
[360779847,1747011256418,-400.0,0.00014399,2]
[360779848,1747011256444,-400.0,0.00014399,2]
[360779849,1747011256827,-1172.43,0.00014399,2]
[360779850,1747011256855,-515.461883,0.00014399,2]
[360779851,1747011269584,700.0,0.00013699,2]
[360779852,1747011269847,700.0,0.00013699,2]
[360779853,1747011270232,700.0,0.00013699,2]
[360779854,1747011270565,700.0,0.00013699,2]
[360779855,1747011270894,700.0,0.00013699,2]
[360779856,1747011315018,440.03906898,0.000142,2]
[360779857,1747011322355,-22333.02918777,0.00015,7]
[360779858,1747011347491,192.85,0.00013472,2]
[360779859,1747011348422,192.85,0.00013539,2]
[360779860,1747011397131,195.0,0.00028,120]
[360779861,1747011456820,1609.0,0.00028,120]
[360779862,1747011463826,945.24,0.00011537,2]
[360779863,1747011464017,945.24,0.00013801,2]
[360779864,1747011491382,181.09072941,0.00014197,2]
[360779865,1747011517597,184.31707358,0.00028,120]
[360779866,1747011612597,1000.0,0.00013699,2]
[360779867,1747011612918,1000.0,0.00013699,2]
[360779868,1747011613262,891.67303385,0.00013699,2]
[360779869,1747011656401,1000.0,0.00013699,2]
[360779870,1747011656732,1000.0,0.00013699,2]
[360779871,1747011657084,1000.0,0.00013699,2]
[360779872,1747011657451,1000.0,0.00013699,2]
[360779873,1747011658003,1000.0,0.00013699,2]
[360779874,1747011658447,1000.0,0.00013699,2]
[360779875,1747011658818,1000.0,0.00013699,2]
[360779876,1747011659139,1000.0,0.00013699,2]
[360779877,1747011659477,1000.0,0.00013699,2]
[360779878,1747011659801,1000.0,0.00013699,2]
[360779880,1747011734563,536.36,0.00013493,2]
[360779881,1747011743150,672.0,0.00013386,2]
[360779882,1747011781121,568.77,0.00013699,2]
[360779883,1747011793316,300.0,0.00028,120]
[360779884,1747011804035,181.09072941,0.00014188,2]
[360779885,1747011809918,181.09072941,0.000142,2]
[360779886,1747011814673,263.51494221,0.00014012,2]
[360779887,1747011856067,700.000001,0.000135,2]
[360779888,1747011904719,4693.93,0.00014,2]
[360779889,1747011906688,4693.93,0.00014,2]
[360779890,1747011908079,152.01808448,0.00014,2]
[360779891,1747011908103,4541.91191552,0.00014,2]
[360779892,1747011953458,-1200.0,0.00014285,2]
[360779893,1747011953486,-300.0,0.00014285,2]
[360779894,1747011953524,-500.0,0.00014286,2]
[360779895,1747011953559,-164.0,0.00014286,2]
[360779896,1747011970614,1000.0,0.00013699,2]
[360779897,1747011970942,1000.0,0.00013699,2]
[360779898,1747011971250,1000.0,0.00013699,2]
[360779899,1747011971565,1000.0,0.00013699,2]
[360779900,1747011972182,1000.0,0.00013699,2]
[360779901,1747011972330,1000.0,0.00013699,2]
[360779902,1747011972532,1000.0,0.00013699,2]
[360779903,1747011972842,553.20859776,0.00013699,2]
[360779904,1747011972867,446.79140224,0.00013699,2]
[360779905,1747011973172,1000.0,0.00013699,2]
[360779906,1747011973452,1000.0,0.00013699,2]
[360779907,1747012091538,250.0,0.00013346,2]
[360779908,1747012131169,270.5062,0.000142,2]
[360779909,1747012131604,23121.27,0.00013321,2]
[360779913,1747012174634,329.5935,0.000142,2]
[360779917,1747012205239,6355.93,0.00014,2]
[360779925,1747012231973,-590.00001,0.00014283,2]
[360779926,1747012231984,-609.99999,0.00014283,2]
[360779927,1747012231993,-250.0,0.00014288,2]
[360779928,1747012232003,-300.0,0.00014289,2]
[360779929,1747012232012,-300.0,0.00014289,2]
[360779930,1747012232022,-1488.19907109,0.0001429,2]
[360779931,1747012232031,-207.4,0.00014291,2]
[360779932,1747012232040,-2130.38471841,0.00014297,2]
[360779933,1747012232049,-150.0,0.00014297,2]
[360779934,1747012232059,-2130.38471841,0.00014297,2]
[360779935,1747012232068,-2130.38471841,0.00014297,2]
[360779936,1747012232079,-2130.38471841,0.00014297,2]
[360779937,1747012232089,-2130.38471841,0.00014297,2]
[360779938,1747012232098,-2130.38471841,0.00014298,2]
[360779939,1747012232107,-2130.38471841,0.00014298,2]
[360779940,1747012232118,-2130.38471841,0.00014298,2]
[360779941,1747012232128,-2130.38471841,0.00014298,2]
[360779942,1747012232137,-181.44713771,0.00014298,2]
[360779943,1747012232147,-2015.98078775,0.00014298,2]
[360779944,1747012232157,-160.87973066,0.00014298,2]
[360779945,1747012232167,-175.63617784,0.00014298,2]
[360779946,1747012232177,-2130.38471841,0.00014298,2]
[360779947,1747012232186,-191.68803225,0.00014298,2]
[360779948,1747012232196,-1405.65150214,0.00014298,2]
[360779949,1747012232205,-248.02792338,0.00014298,2]
[360779950,1747012232215,-2015.98078774,0.00014298,2]
[360779951,1747012232224,-2015.98078774,0.00014298,2]
[360779952,1747012232235,-4965.9037,0.00014299,2]
[360779953,1747012232244,-2015.98078774,0.00014299,2]
[360779954,1747012232254,-2015.98078774,0.00014299,2]
[360779955,1747012232264,-16291.4384,0.00014299,2]
[360779956,1747012232274,-5301.0195,0.00014299,2]
[360779957,1747012232284,-2519.507,0.00014299,2]
[360779958,1747012232293,-172.964,0.00014299,2]
[360779959,1747012232303,-2015.98078774,0.00014299,2]
[360779960,1747012232312,-2015.98078774,0.00014299,2]
[360779961,1747012232322,-2015.98078774,0.000143,2]
[360779962,1747012232332,-2015.98078774,0.000143,2]
[360779963,1747012232341,-34736.8727,0.000143,2]
[360779964,1747012232592,-2850.66,0.000143,2]
[360779965,1747012232602,-7287.95585643,0.000143,2]
[360779966,1747012232615,-2712.03414357,0.000143,2]
[360779967,1747012232625,-150.99,0.000143,2]
[360779968,1747012232634,-2367.65897517,0.000143,2]
[360779969,1747012232669,-7632.33102483,0.000143,2]
[360779970,1747012232678,-2015.98078774,0.000143,2]
[360779971,1747012232688,-191.68803223,0.00014355,2]
[360779972,1747012232698,-500.0,0.00014373,2]
[360779973,1747012232707,-501.29466975,0.00014373,2]
[360779974,1747012232716,-596.9165218,0.00014373,2]
[360779975,1747012232726,-500.0,0.00014373,2]
[360779976,1747012232736,-163.91535588,0.00014373,2]
[360779977,1747012232745,-500.0,0.00014373,2]
[360779978,1747012232755,-285.9770449,0.00014373,2]
[360779979,1747012232764,-500.0,0.00014373,2]
[360779980,1747012232774,-500.0,0.00014373,2]
[360779981,1747012232783,-500.0,0.00014373,2]
[360779982,1747012232792,-320.93566947,0.00014373,2]
[360779983,1747012232802,-500.0,0.00014373,2]
[360779984,1747012232811,-500.0,0.00014373,2]
[360779985,1747012232820,-500.0,0.00014373,2]
[360779986,1747012232829,-552.50817158,0.00014388,2]
[360779987,1747012232839,-552.50817158,0.00014388,2]
[360779988,1747012232848,-552.50817158,0.00014388,2]
[360779989,1747012232858,-151.0,0.00014389,2]
[360779990,1747012232867,-151.0,0.00014389,2]
[360779991,1747012232877,-668.65185757,0.00014389,2]
[360779992,1747012232886,-400.0,0.00014396,2]
[360779993,1747012232895,-400.0,0.00014396,2]
[360779994,1747012232905,-400.0,0.00014396,2]
[360779995,1747012232914,-400.0,0.00014396,2]
[360779996,1747012232924,-400.0,0.00014396,2]
[360779997,1747012232933,-400.0,0.00014396,2]
[360779998,1747012232943,-400.0,0.00014396,2]
[360779999,1747012232952,-400.0,0.00014396,2]
[360780000,1747012232962,-400.0,0.00014396,2]
[360780001,1747012232971,-400.1604243,0.00014396,2]
[360780002,1747012232981,-400.0,0.00014396,2]
[360780003,1747012232992,-400.0,0.00014396,2]
[360780004,1747012233001,-400.0,0.00014396,2]
[360780005,1747012233011,-400.0,0.00014396,2]
[360780006,1747012233020,-400.0,0.00014396,2]
[360780007,1747012233030,-400.0,0.00014396,2]
[360780008,1747012233039,-400.0,0.00014396,2]
[360780009,1747012233049,-400.0,0.00014396,2]
[360780010,1747012233059,-400.0,0.00014396,2]
[360780011,1747012233069,-400.0,0.00014396,2]
[360780012,1747012233083,-731.79,0.00014396,2]
[360780013,1747012233095,-400.0,0.00014396,2]
[360780014,1747012233104,-1172.43,0.00014396,2]
[360780015,1747012233114,-818.57278446,0.00014397,2]
[360780016,1747012233124,-400.0,0.00014397,2]
[360780017,1747012233134,-400.0,0.00014397,2]
[360780018,1747012233143,-400.0,0.00014397,2]
[360780019,1747012233152,-400.0,0.00014397,2]
[360780020,1747012233162,-400.0,0.00014397,2]
[360780021,1747012233171,-400.0,0.00014397,2]
[360780022,1747012233181,-400.0,0.00014397,2]
[360780023,1747012233191,-400.0,0.00014397,2]
[360780024,1747012233201,-502.27169937,0.00014397,2]
[360780025,1747012233211,-516.3384871,0.00014397,2]
[360780026,1747012233221,-400.0,0.00014397,2]
[360780027,1747012233231,-520.37095154,0.00014397,2]
[360780028,1747012233242,-400.0,0.00014397,2]
[360780029,1747012233252,-515.73618983,0.00014397,2]
[360780030,1747012233265,-400.0,0.00014397,2]
[360780031,1747012233276,-400.0,0.00014397,2]
[360780032,1747012233286,-400.0,0.00014397,2]
[360780033,1747012233297,-400.0,0.00014397,2]
[360780034,1747012233307,-530.54269177,0.00014397,2]
[360780035,1747012233317,-507.63759896,0.00014397,2]
[360780036,1747012233327,-400.0,0.00014397,2]
[360780037,1747012233337,-221.51801401,0.00014397,2]
[360780038,1747012233347,-400.0,0.00014397,2]
[360780039,1747012233359,-239.50456,0.00014397,2]
[360780040,1747012233371,-400.0,0.00014397,2]
[360780041,1747012233383,-400.0,0.00014397,2]
[360780042,1747012233394,-400.0,0.00014397,2]
[360780043,1747012233406,-400.0,0.00014397,2]
[360780044,1747012233417,-500.0,0.00014397,2]
[360780045,1747012233429,-400.0,0.00014397,2]
[360780046,1747012233440,-496.26035296,0.00014397,2]
[360780047,1747012233448,-450.45979985,0.00014397,2]
[360780048,1747012233458,-253.52642343,0.00014397,2]
[360780049,1747012233468,-400.0,0.00014397,2]
[360780050,1747012233478,-400.0,0.00014397,2]
[360780051,1747012233489,-400.0,0.00014397,2]
[360780052,1747012233498,-400.0,0.00014397,2]
[360780053,1747012233507,-370.84201643,0.00014397,2]
[360780054,1747012233517,-400.0,0.00014397,2]
[360780055,1747012233527,-400.0,0.00014397,2]
[360780056,1747012233537,-400.0,0.00014397,2]
[360780057,1747012233546,-400.0,0.00014397,2]
[360780058,1747012233556,-400.0,0.00014397,2]
[360780059,1747012233565,-400.0,0.00014397,2]
[360780060,1747012233575,-400.0,0.00014397,2]
[360780061,1747012233585,-400.0,0.00014397,2]
[360780062,1747012233594,-247.7335817,0.00014397,2]
[360780063,1747012233604,-400.0,0.00014397,2]
[360780064,1747012233614,-400.0,0.00014397,2]
[360780065,1747012233623,-369.09251629,0.00014397,2]
[360780066,1747012233633,-400.0,0.00014397,2]
[360780067,1747012233642,-400.0,0.00014397,2]
[360780068,1747012233651,-400.0,0.00014397,2]
[360780069,1747012233660,-400.0,0.00014397,2]
[360780070,1747012233670,-400.0,0.00014397,2]
[360780071,1747012233680,-400.0,0.00014397,2]
[360780072,1747012233689,-252.29958709,0.00014397,2]